[Event "*** Titled Tuesday Blitz"]
[Site "Chess.com"]
[Date "2021.02.16"]
[Round "10"]
[White "ObligatePawnivore"]
[Black "Pantata007"]
[Result "1-0"]
[WhiteElo "1836"]
[BlackElo "2244"]
[TimeControl "180+1"]
[EndTime "11:56:26 PST"]
[Termination "ObligatePawnivore won by resignation"]

1. c4 {[%clk 0:03:00.9]} 1... Nf6 {[%clk 0:02:59.1]} 2. Nc3 {[%clk 0:03:00.7]}
2... c5 {[%clk 0:02:59.2]} 3. Nf3 {[%clk 0:02:55.3]} 3... e6 {[%clk 0:02:59.1]}
4. g3 {[%clk 0:02:52.6]} 4... b6 {[%clk 0:02:59.4]} 5. Bg2 {[%clk 0:02:50.6]}
5... Bb7 {[%clk 0:02:59.8]} 6. O-O {[%clk 0:02:50.6]} 6... Be7 {[%clk
0:03:00.1]} 7. Re1 {[%clk 0:02:50.8]} 7... d5 {[%clk 0:02:59.3]} 8. cxd5 {[%clk
0:02:49.8]} 8... Nxd5 {[%clk 0:03:00.2]} 9. e4 {[%clk 0:02:47.5]} 9... Nb4
{[%clk 0:03:00.5]} 10. d4 {[%clk 0:02:47.1]} 10... cxd4 {[%clk 0:03:01.4]} 11.
Nxd4 {[%clk 0:02:47]} 11... O-O {[%clk 0:03:00.6]} 12. Be3 {[%clk 0:02:35]}
12... N8c6 {[%clk 0:02:51.6]} 13. Nxc6 {[%clk 0:02:19.2]} 13... Bxc6 {[%clk
0:02:48.4]} 14. Qb3 {[%clk 0:02:10.3]} 14... Qd3 {[%clk 0:02:19.6]} 15. Rac1
{[%clk 0:01:45.6]} 15... Rfd8 {[%clk 0:02:03.7]} 16. a3 {[%clk 0:01:42.4]} 16...
Na6 {[%clk 0:00:51.7]} 17. Red1 {[%clk 0:01:37.5]} 1-0

[Event "*** Titled Tuesday Blitz"]
[Site "Chess.com"]
[Date "2021.02.16"]
[Round "10"]
[White "AlexeiShirov"]
[Black "GianmarcoVaR"]
[Result "0-1"]
[WhiteElo "2828"]
[BlackElo "2681"]
[TimeControl "180+1"]
[EndTime "11:56:28 PST"]
[Termination "GianmarcoVaR won by resignation"]

1. e4 {[%clk 0:03:00.9]} 1... c6 {[%clk 0:02:57.2]} 2. d4 {[%clk 0:03:00.2]}
2... d5 {[%clk 0:02:57.6]} 3. e5 {[%clk 0:03:00.8]} 3... Bf5 {[%clk 0:02:57.5]}
4. Nf3 {[%clk 0:03:00.9]} 4... e6 {[%clk 0:02:56.4]} 5. Be2 {[%clk 0:03:01.3]}
5... Nd7 {[%clk 0:02:48.3]} 6. O-O {[%clk 0:03:00.7]} 6... Bb4 {[%clk
0:02:48.5]} 7. c3 {[%clk 0:02:56.9]} 7... Ba5 {[%clk 0:02:48.1]} 8. Na3 {[%clk
0:02:56.2]} 8... h6 {[%clk 0:02:37.3]} 9. Nc2 {[%clk 0:02:55.2]} 9... Ne7 {[%clk
0:02:34.8]} 10. Ne3 {[%clk 0:02:53.4]} 10... Bh7 {[%clk 0:02:31.8]} 11. Nh4
{[%clk 0:02:51.3]} 11... g5 {[%clk 0:02:17.7]} 12. Nf3 {[%clk 0:02:50.4]} 12...
Bc7 {[%clk 0:02:17.5]} 13. Ng4 {[%clk 0:02:49.4]} 13... Bf5 {[%clk 0:02:11.6]}
14. Ne3 {[%clk 0:02:47.8]} 14... Bg6 {[%clk 0:02:05.6]} 15. Bd3 {[%clk 0:02:47]}
15... f5 {[%clk 0:01:45.5]} 16. exf6 {[%clk 0:02:45.2]} 16... Nxf6 {[%clk
0:01:45.8]} 17. Ne5 {[%clk 0:02:41.6]} 17... Bxe5 {[%clk 0:01:44.3]} 18. dxe5
{[%clk 0:02:41.3]} 18... Nd7 {[%clk 0:01:44.6]} 19. Ng4 {[%clk 0:02:39.2]} 19...
Bxd3 {[%clk 0:01:41.1]} 20. Qxd3 {[%clk 0:02:37.9]} 20... Nf5 {[%clk 0:01:35.9]}
21. f4 {[%clk 0:02:37]} 21... Nc5 {[%clk 0:01:05.6]} 22. Qh3 {[%clk 0:02:34.4]}
22... Ne4 {[%clk 0:01:05.4]} 23. fxg5 {[%clk 0:02:24.5]} 23... Qb6+ {[%clk
0:01:04.9]} 24. Kh1 {[%clk 0:02:19.9]} 24... O-O-O {[%clk 0:01:04.9]} 25. gxh6
{[%clk 0:02:18.5]} 25... Rdf8 {[%clk 0:00:59.2]} 26. Bf4 {[%clk 0:02:14.5]}
26... Qxb2 {[%clk 0:00:57]} 27. Qh4 {[%clk 0:01:54.2]} 27... Nxh4 {[%clk
0:00:53.9]} 0-1

[Event "*** Titled Tuesday Blitz"]
[Site "Chess.com"]
[Date "2021.02.16"]
[Round "10"]
[White "Gusarov91"]
[Black "korbul"]
[Result "0-1"]
[WhiteElo "2437"]
[BlackElo "2583"]
[TimeControl "180+1"]
[EndTime "11:56:33 PST"]
[Termination "korbul won by resignation"]

1. d4 {[%clk 0:03:00.9]} 1... Nf6 {[%clk 0:02:59.2]} 2. Nf3 {[%clk 0:02:58.1]}
2... b6 {[%clk 0:02:58.2]} 3. g3 {[%clk 0:02:57.4]} 3... Bb7 {[%clk 0:02:58.3]}
4. Bg2 {[%clk 0:02:57.8]} 4... g6 {[%clk 0:02:59]} 5. O-O {[%clk 0:02:58.3]}
5... Bg7 {[%clk 0:02:59.9]} 6. c4 {[%clk 0:02:58.9]} 6... O-O {[%clk 0:02:59.6]}
7. d5 {[%clk 0:02:59.3]} 7... Ne4 {[%clk 0:02:59.3]} 8. Qc2 {[%clk 0:02:58.5]}
8... Nc5 {[%clk 0:02:51.4]} 9. Nc3 {[%clk 0:02:56]} 9... a5 {[%clk 0:02:50.7]}
10. Be3 {[%clk 0:02:52.5]} 10... e5 {[%clk 0:02:49.5]} 11. dxe6 {[%clk
0:02:44.2]} 11... dxe6 {[%clk 0:02:49]} 12. Rad1 {[%clk 0:02:42.5]} 12... Qe7
{[%clk 0:02:48]} 13. Bg5 {[%clk 0:02:40.9]} 13... f6 {[%clk 0:02:46.4]} 14. Be3
{[%clk 0:02:41.1]} 14... Nbd7 {[%clk 0:02:40.9]} 15. b3 {[%clk 0:02:39.8]} 15...
Rad8 {[%clk 0:02:39.8]} 16. Nb5 {[%clk 0:02:39.1]} 16... Na6 {[%clk 0:02:28.5]}
17. Rd2 {[%clk 0:02:26.6]} 17... e5 {[%clk 0:02:27]} 18. Rfd1 {[%clk 0:02:23.8]}
18... Ndc5 {[%clk 0:02:26.8]} 19. Nc3 {[%clk 0:02:17.7]} 19... Nb4 {[%clk
0:02:25]} 20. Qb1 {[%clk 0:02:17.4]} 20... e4 {[%clk 0:02:16.3]} 21. Nd4 {[%clk
0:02:15.7]} 21... f5 {[%clk 0:02:16.4]} 22. a3 {[%clk 0:02:15.3]} 22... Nbd3
{[%clk 0:02:03.6]} 23. exd3 {[%clk 0:02:10.3]} 23... Bxd4 {[%clk 0:02:01.9]} 24.
Bxd4 {[%clk 0:02:08.1]} 24... Rxd4 {[%clk 0:02:00.7]} 25. dxe4 {[%clk
0:02:06.8]} 25... Rxd2 {[%clk 0:02:00.7]} 26. Rxd2 {[%clk 0:02:07.3]} 26... fxe4
{[%clk 0:02:00.5]} 27. b4 {[%clk 0:02:06.3]} 27... axb4 {[%clk 0:01:59.7]} 28.
axb4 {[%clk 0:02:06.4]} 28... e3 {[%clk 0:01:57.9]} 29. Nd5 {[%clk 0:01:58.4]}
29... Bxd5 {[%clk 0:01:51.1]} 30. Bxd5+ {[%clk 0:01:58.1]} 30... Kg7 {[%clk
0:01:51.3]} 31. Qb2+ {[%clk 0:01:55.5]} 31... Kh6 {[%clk 0:01:40.5]} 32. Re2
{[%clk 0:01:46.3]} 32... Nd3 {[%clk 0:01:34.9]} 33. Qd4 {[%clk 0:01:39.7]} 33...
exf2+ {[%clk 0:01:32.9]} 34. Kf1 {[%clk 0:01:39.9]} 34... Qxe2+ {[%clk
0:01:31.8]} 35. Kxe2 {[%clk 0:01:39.7]} 35... f1=Q+ {[%clk 0:01:31.8]} 36. Kd2
{[%clk 0:01:40.2]} 36... Rf2+ {[%clk 0:01:27]} 37. Kc3 {[%clk 0:01:40.5]} 37...
Qa1+ {[%clk 0:01:25.6]} 38. Kxd3 {[%clk 0:01:41.1]} 38... Rd2+ {[%clk
0:01:25.6]} 39. Kxd2 {[%clk 0:01:42]} 0-1

[Event "*** Titled Tuesday Blitz"]
[Site "Chess.com"]
[Date "2021.02.16"]
[Round "10"]
[White "IMAghasiyevKamal"]
[Black "KetiGrant"]
[Result "1-0"]
[WhiteElo "2537"]
[BlackElo "2395"]
[TimeControl "180+1"]
[EndTime "11:56:34 PST"]
[Termination "IMAghasiyevKamal won by resignation"]

1. d4 {[%clk 0:03:00.9]} 1... Nf6 {[%clk 0:02:59.2]} 2. c4 {[%clk 0:02:59.7]}
2... g6 {[%clk 0:02:59.2]} 3. Nc3 {[%clk 0:02:55.6]} 3... Bg7 {[%clk 0:03:00.1]}
4. e4 {[%clk 0:02:54.7]} 4... d6 {[%clk 0:03:01]} 5. Be2 {[%clk 0:02:51.3]} 5...
O-O {[%clk 0:03:01.5]} 6. Bg5 {[%clk 0:02:46.7]} 6... Na6 {[%clk 0:03:00.6]} 7.
Nf3 {[%clk 0:02:40.4]} 7... c5 {[%clk 0:02:54.9]} 8. d5 {[%clk 0:02:29.2]} 8...
e6 {[%clk 0:02:47.8]} 9. dxe6 {[%clk 0:02:21]} 9... fxe6 {[%clk 0:02:46.6]} 10.
e5 {[%clk 0:02:17]} 10... dxe5 {[%clk 0:02:44.6]} 11. Qxd8 {[%clk 0:02:16.7]}
11... Rxd8 {[%clk 0:02:45.5]} 12. Ne4 {[%clk 0:02:16.2]} 12... Rf8 {[%clk
0:02:41.5]} 13. Bxf6 {[%clk 0:02:14.7]} 13... Bxf6 {[%clk 0:02:42.4]} 14. Nxf6+
{[%clk 0:02:15.3]} 14... Rxf6 {[%clk 0:02:41.7]} 15. a3 {[%clk 0:02:10]} 15...
e4 {[%clk 0:02:39.1]} 16. Ng5 {[%clk 0:02:09.6]} 16... e3 {[%clk 0:02:32.9]} 17.
O-O-O {[%clk 0:01:58.4]} 17... Rxf2 {[%clk 0:02:12.9]} 18. Rd8+ {[%clk
0:01:50.1]} 18... Kg7 {[%clk 0:02:08.2]} 19. Bf3 {[%clk 0:01:49.2]} 19... Nc7
{[%clk 0:02:07.3]} 20. Ne4 {[%clk 0:01:43.7]} 20... Rxf3 {[%clk 0:01:53.5]} 21.
gxf3 {[%clk 0:01:42]} 21... e5 {[%clk 0:01:54.4]} 22. Nd6 {[%clk 0:01:24.9]}
22... Bh3 {[%clk 0:01:42.4]} 23. Rxa8 {[%clk 0:01:15]} 23... Nxa8 {[%clk
0:01:41.3]} 24. Re1 {[%clk 0:01:14]} 24... b6 {[%clk 0:01:31.6]} 25. Rxe3 {[%clk
0:01:12.6]} 25... Kf6 {[%clk 0:01:28.5]} 26. f4 {[%clk 0:01:11.6]} 1-0

[Event "*** Titled Tuesday Blitz"]
[Site "Chess.com"]
[Date "2021.02.16"]
[Round "10"]
[White "GM_Crest"]
[Black "dropstoneDP"]
[Result "1-0"]
[WhiteElo "2767"]
[BlackElo "2963"]
[TimeControl "180+1"]
[EndTime "11:56:40 PST"]
[Termination "GM_Crest won by resignation"]

1. d4 {[%clk 0:03:00.9]} 1... Nf6 {[%clk 0:02:59.8]} 2. c4 {[%clk 0:03:01]} 2...
Ng8 {[%clk 0:03:00.1]} 3. e4 {[%clk 0:03:00]} 3... e6 {[%clk 0:02:58.3]} 4. Nc3
{[%clk 0:02:59.7]} 4... d6 {[%clk 0:02:57.8]} 5. Nb1 {[%clk 0:02:58.8]} 5... Nf6
{[%clk 0:02:54.1]} 6. Nc3 {[%clk 0:02:58.4]} 6... Be7 {[%clk 0:02:54.3]} 7. f4
{[%clk 0:02:57.6]} 7... O-O {[%clk 0:02:54.2]} 8. Nf3 {[%clk 0:02:55.9]} 8... d5
{[%clk 0:02:52]} 9. e5 {[%clk 0:02:51.8]} 9... Ne4 {[%clk 0:02:39.2]} 10. Bd3
{[%clk 0:02:50.9]} 10... Bb4 {[%clk 0:02:30.8]} 11. Qc2 {[%clk 0:02:49.7]} 11...
c5 {[%clk 0:02:30.1]} 12. O-O {[%clk 0:02:48.2]} 12... cxd4 {[%clk 0:02:28]} 13.
Nxe4 {[%clk 0:02:48.1]} 13... dxe4 {[%clk 0:02:25.9]} 14. Bxe4 {[%clk
0:02:48.4]} 14... g6 {[%clk 0:02:25.3]} 15. a3 {[%clk 0:02:47.3]} 15... Bc5
{[%clk 0:02:25]} 16. Bd3 {[%clk 0:02:46.3]} 16... a5 {[%clk 0:02:22.5]} 17. Ng5
{[%clk 0:02:46.3]} 17... Nc6 {[%clk 0:02:21.7]} 18. Qe2 {[%clk 0:02:44.6]} 18...
a4 {[%clk 0:02:12.1]} 19. h4 {[%clk 0:02:43.2]} 19... b6 {[%clk 0:01:36]} 20. h5
{[%clk 0:02:41.8]} 20... Ra7 {[%clk 0:01:33.7]} 21. Bd2 {[%clk 0:02:37]} 21...
Ne7 {[%clk 0:01:18.4]} 22. g4 {[%clk 0:02:30.3]} 22... Bb7 {[%clk 0:01:17.6]}
23. Qh2 {[%clk 0:02:30.1]} 23... h6 {[%clk 0:00:21.9]} 24. hxg6 {[%clk
0:02:29.7]} 24... Kg7 {[%clk 0:00:22.1]} 25. Nxf7 {[%clk 0:02:26]} 25... Rxf7
{[%clk 0:00:21.4]} 26. gxf7 {[%clk 0:02:25.5]} 26... Qh8 {[%clk 0:00:19]} 27. f5
{[%clk 0:02:24.7]} 27... Kxf7 {[%clk 0:00:15.2]} 28. Qh5+ {[%clk 0:02:20.5]} 1-0

[Event "*** Titled Tuesday Blitz"]
[Site "Chess.com"]
[Date "2021.02.16"]
[Round "10"]
[White "Matols"]
[Black "akanga001"]
[Result "1-0"]
[WhiteElo "2238"]
[BlackElo "1979"]
[TimeControl "180+1"]
[EndTime "11:56:49 PST"]
[Termination "Matols won by resignation"]

1. d4 {[%clk 0:03:00.9]} 1... Nf6 {[%clk 0:02:57.9]} 2. c4 {[%clk 0:03:00.8]}
2... b6 {[%clk 0:02:58.1]} 3. Nc3 {[%clk 0:02:57.4]} 3... Bb7 {[%clk 0:02:57.8]}
4. e3 {[%clk 0:02:56.7]} 4... g6 {[%clk 0:02:57.3]} 5. Nf3 {[%clk 0:02:51.8]}
5... Bg7 {[%clk 0:02:57.1]} 6. Bd3 {[%clk 0:02:50.9]} 6... O-O {[%clk
0:02:55.1]} 7. O-O {[%clk 0:02:50.5]} 7... d6 {[%clk 0:02:54.3]} 8. b3 {[%clk
0:02:49]} 8... c5 {[%clk 0:02:54.3]} 9. Bb2 {[%clk 0:02:47.8]} 9... Nbd7 {[%clk
0:02:54.1]} 10. d5 {[%clk 0:02:43.8]} 10... e6 {[%clk 0:02:51.8]} 11. e4 {[%clk
0:02:42]} 11... exd5 {[%clk 0:02:51.8]} 12. exd5 {[%clk 0:02:41.5]} 12... a6
{[%clk 0:02:51.7]} 13. a4 {[%clk 0:02:39.3]} 13... Qc7 {[%clk 0:02:50.1]} 14.
Re1 {[%clk 0:02:38]} 14... Rae8 {[%clk 0:02:50]} 15. Qc2 {[%clk 0:02:36.9]}
15... Ng4 {[%clk 0:02:49.4]} 16. Ne4 {[%clk 0:02:25]} 16... Nge5 {[%clk
0:02:45.4]} 17. Nxe5 {[%clk 0:02:13]} 17... Nxe5 {[%clk 0:02:44.9]} 18. Bf1
{[%clk 0:02:12.4]} 18... b5 {[%clk 0:02:35.8]} 19. axb5 {[%clk 0:02:10.8]} 19...
axb5 {[%clk 0:02:35.1]} 20. h3 {[%clk 0:02:09.3]} 20... bxc4 {[%clk 0:02:34.8]}
21. bxc4 {[%clk 0:02:08.7]} 21... h6 {[%clk 0:02:26.2]} 22. f4 {[%clk
0:02:07.7]} 22... Nd7 {[%clk 0:02:13]} 23. Bxg7 {[%clk 0:02:06.3]} 23... Kxg7
{[%clk 0:02:12.9]} 24. Qb2+ {[%clk 0:02:05.1]} 24... f6 {[%clk 0:02:11.3]} 25.
Ra7 {[%clk 0:02:01.6]} 25... Rb8 {[%clk 0:02:09.9]} 26. Rb1 {[%clk 0:02:00.1]}
26... Rfe8 {[%clk 0:01:52.2]} 27. Rxb7 {[%clk 0:01:58.9]} 27... Rxb7 {[%clk
0:01:50.6]} 28. Qxb7 {[%clk 0:01:58.4]} 28... Qxb7 {[%clk 0:01:31.8]} 29. Rxb7
{[%clk 0:01:59.3]} 29... Rxe4 {[%clk 0:01:29.6]} 30. Rxd7+ {[%clk 0:01:58.4]}
30... Kg8 {[%clk 0:01:29.8]} 31. Rxd6 {[%clk 0:01:57.6]} 31... Rxf4 {[%clk
0:01:29.9]} 32. Rc6 {[%clk 0:01:57]} 32... Kf7 {[%clk 0:01:19.3]} 33. Rxc5
{[%clk 0:01:56.6]} 33... g5 {[%clk 0:01:20.2]} 34. Rc7+ {[%clk 0:01:55]} 34...
Kg6 {[%clk 0:01:18.9]} 35. d6 {[%clk 0:01:53.9]} 35... Rd4 {[%clk 0:01:17.6]}
36. c5 {[%clk 0:01:53.5]} 36... f5 {[%clk 0:01:16.3]} 37. d7 {[%clk 0:01:52.7]}
37... f4 {[%clk 0:01:15.8]} 38. c6 {[%clk 0:01:52.3]} 38... h5 {[%clk
0:01:14.7]} 39. Rc8 {[%clk 0:01:51.7]} 39... g4 {[%clk 0:01:13]} 40. d8=Q {[%clk
0:01:50.2]} 1-0

[Event "*** Titled Tuesday Blitz"]
[Site "Chess.com"]
[Date "2021.02.16"]
[Round "10"]
[White "Zenzo"]
[Black "kleopl"]
[Result "1-0"]
[WhiteElo "2611"]
[BlackElo "2464"]
[TimeControl "180+1"]
[EndTime "11:57:02 PST"]
[Termination "Zenzo won by resignation"]

1. e4 {[%clk 0:03:00.9]} 1... c6 {[%clk 0:02:59]} 2. d4 {[%clk 0:03:00.7]} 2...
d5 {[%clk 0:02:59.9]} 3. Nc3 {[%clk 0:03:01.3]} 3... a6 {[%clk 0:02:59.3]} 4. h4
{[%clk 0:02:53.6]} 4... h5 {[%clk 0:02:34.4]} 5. Nf3 {[%clk 0:02:46.7]} 5... Bg4
{[%clk 0:02:33.9]} 6. Be2 {[%clk 0:02:47]} 6... e6 {[%clk 0:02:33.7]} 7. Bf4
{[%clk 0:02:38.3]} 7... Nf6 {[%clk 0:02:32.4]} 8. e5 {[%clk 0:02:35]} 8... Nfd7
{[%clk 0:02:31.9]} 9. Ng5 {[%clk 0:02:33.3]} 9... Bxe2 {[%clk 0:02:29.1]} 10.
Nxe2 {[%clk 0:02:33.4]} 10... c5 {[%clk 0:02:29]} 11. c3 {[%clk 0:02:31.1]}
11... Nc6 {[%clk 0:02:28.3]} 12. f3 {[%clk 0:02:20]} 12... Qb6 {[%clk
0:02:26.6]} 13. b3 {[%clk 0:02:09.8]} 13... cxd4 {[%clk 0:02:19.9]} 14. cxd4
{[%clk 0:02:09.5]} 14... Bb4+ {[%clk 0:02:19.4]} 15. Kf1 {[%clk 0:02:01.4]}
15... Rc8 {[%clk 0:02:02.5]} 16. Rc1 {[%clk 0:02:00.5]} 16... Ne7 {[%clk
0:01:54.7]} 17. Rxc8+ {[%clk 0:01:57.1]} 17... Nxc8 {[%clk 0:01:55.6]} 18. g4
{[%clk 0:01:54.8]} 18... Ne7 {[%clk 0:01:51.1]} 19. Ng3 {[%clk 0:01:52]} 19...
hxg4 {[%clk 0:01:50.3]} 20. fxg4 {[%clk 0:01:52.2]} 20... Nc6 {[%clk 0:01:43.1]}
21. Ne2 {[%clk 0:01:47.7]} 21... Be7 {[%clk 0:01:40.5]} 22. h5 {[%clk
0:01:35.7]} 22... Qa5 {[%clk 0:01:37]} 23. a4 {[%clk 0:01:31.7]} 23... Qb4
{[%clk 0:01:36]} 24. Nf3 {[%clk 0:01:28.7]} 24... Na5 {[%clk 0:01:27.9]} 25. Nd2
{[%clk 0:01:25.1]} 25... Nc6 {[%clk 0:01:20.3]} 26. Nf3 {[%clk 0:01:16.5]} 26...
Na5 {[%clk 0:01:16.4]} 27. Nc1 {[%clk 0:01:07.2]} 27... Qc3 {[%clk 0:01:10.6]}
28. Bd2 {[%clk 0:01:02.7]} 28... Qd3+ {[%clk 0:01:09.8]} 29. Nxd3 {[%clk
0:01:02.4]} 1-0

[Event "*** Titled Tuesday Blitz"]
[Site "Chess.com"]
[Date "2021.02.16"]
[Round "10"]
[White "Ze-Pequeno"]
[Black "ChessSwole"]
[Result "0-1"]
[WhiteElo "2278"]
[BlackElo "2522"]
[TimeControl "180+1"]
[EndTime "11:57:10 PST"]
[Termination "ChessSwole won by resignation"]

1. e4 {[%clk 0:02:59]} 1... e5 {[%clk 0:02:59.3]} 2. Nf3 {[%clk 0:02:58.9]} 2...
Nc6 {[%clk 0:02:59.3]} 3. Nc3 {[%clk 0:02:58.6]} 3... Nf6 {[%clk 0:02:57]} 4. d4
{[%clk 0:02:58.7]} 4... exd4 {[%clk 0:02:57.9]} 5. Nxd4 {[%clk 0:02:59.3]} 5...
Bb4 {[%clk 0:02:57.4]} 6. Nxc6 {[%clk 0:02:59.5]} 6... bxc6 {[%clk 0:02:57.7]}
7. Bd3 {[%clk 0:03:00.1]} 7... d5 {[%clk 0:02:56.5]} 8. exd5 {[%clk 0:03:01]}
8... O-O {[%clk 0:02:56.9]} 9. O-O {[%clk 0:03:00.7]} 9... Bg4 {[%clk
0:02:56.8]} 10. Be2 {[%clk 0:03:00.7]} 10... Bxe2 {[%clk 0:02:56]} 11. Nxe2
{[%clk 0:02:59.2]} 11... cxd5 {[%clk 0:02:52]} 12. Bg5 {[%clk 0:02:58.8]} 12...
Be7 {[%clk 0:02:43.7]} 13. Nd4 {[%clk 0:02:57.7]} 13... Qd7 {[%clk 0:02:39.7]}
14. Qf3 {[%clk 0:02:50.2]} 14... Ne4 {[%clk 0:02:30.9]} 15. Bxe7 {[%clk
0:02:41.4]} 15... Qxe7 {[%clk 0:02:31.8]} 16. Rfe1 {[%clk 0:02:41.4]} 16... Qc5
{[%clk 0:02:27.4]} 17. c3 {[%clk 0:02:37.9]} 17... Rab8 {[%clk 0:02:23.1]} 18.
Re2 {[%clk 0:02:26.9]} 18... Rfe8 {[%clk 0:02:17.6]} 19. Rae1 {[%clk 0:02:24.7]}
19... g6 {[%clk 0:02:12.1]} 20. Qf4 {[%clk 0:02:13.7]} 20... a5 {[%clk
0:02:04.9]} 21. h4 {[%clk 0:02:07.5]} 21... h5 {[%clk 0:02:02.1]} 22. a3 {[%clk
0:01:36.3]} 22... Kg7 {[%clk 0:01:45.9]} 23. Kh2 {[%clk 0:01:11.9]} 23... Qb6
{[%clk 0:01:19]} 24. f3 {[%clk 0:00:58.4]} 24... Qd6 {[%clk 0:01:13.5]} 25. Qxd6
{[%clk 0:00:56.2]} 25... Nxd6 {[%clk 0:01:14.4]} 26. Rxe8 {[%clk 0:00:50.6]}
26... Nxe8 {[%clk 0:01:15.1]} 27. Rxe8 {[%clk 0:00:51]} 27... Rxe8 {[%clk
0:01:13.7]} 0-1

[Event "*** Titled Tuesday Blitz"]
[Site "Chess.com"]
[Date "2021.02.16"]
[Round "10"]
[White "BigAl"]
[Black "Shahaliyev"]
[Result "1-0"]
[WhiteElo "2503"]
[BlackElo "2665"]
[TimeControl "180+1"]
[EndTime "11:57:11 PST"]
[Termination "BigAl won by resignation"]

1. Nf3 {[%clk 0:03:00.9]} 1... Nf6 {[%clk 0:02:58.4]} 2. g3 {[%clk 0:03:00.4]}
2... e6 {[%clk 0:02:56.5]} 3. Bg2 {[%clk 0:03:00.6]} 3... b6 {[%clk 0:02:54.2]}
4. O-O {[%clk 0:03:01.1]} 4... Bb7 {[%clk 0:02:54.4]} 5. d3 {[%clk 0:03:01.8]}
5... c5 {[%clk 0:02:54.9]} 6. e4 {[%clk 0:03:01.1]} 6... Be7 {[%clk 0:02:54.3]}
7. a4 {[%clk 0:02:47.7]} 7... Nc6 {[%clk 0:02:53.3]} 8. e5 {[%clk 0:02:42.7]}
8... Nd5 {[%clk 0:02:53.2]} 9. Nbd2 {[%clk 0:02:41.7]} 9... d6 {[%clk
0:02:52.3]} 10. exd6 {[%clk 0:02:36.7]} 10... Bxd6 {[%clk 0:02:47.4]} 11. Nc4
{[%clk 0:02:33.1]} 11... Bc7 {[%clk 0:02:45]} 12. Re1 {[%clk 0:02:18.3]} 12...
O-O {[%clk 0:02:44.3]} 13. a5 {[%clk 0:02:14.1]} 13... b5 {[%clk 0:02:19.8]} 14.
a6 {[%clk 0:02:13.9]} 14... Bc8 {[%clk 0:02:19.8]} 15. Nce5 {[%clk 0:02:14.6]}
15... Nxe5 {[%clk 0:02:20.1]} 16. Nxe5 {[%clk 0:02:15]} 16... Bxe5 {[%clk
0:02:20.7]} 17. Rxe5 {[%clk 0:02:15.2]} 17... Qd6 {[%clk 0:02:21.4]} 18. Re1
{[%clk 0:02:01.9]} 18... Bxa6 {[%clk 0:02:11.3]} 19. Qg4 {[%clk 0:01:50.6]}
19... Nf6 {[%clk 0:01:31.1]} 20. Qh4 {[%clk 0:01:50.4]} 20... Qb6 {[%clk
0:01:19.2]} 21. Be3 {[%clk 0:01:33.3]} 21... Rac8 {[%clk 0:01:17.5]} 22. b4
{[%clk 0:01:29.7]} 22... Nd7 {[%clk 0:00:47.2]} 23. Qe7 {[%clk 0:01:18.2]} 23...
Rfd8 {[%clk 0:00:40.9]} 24. bxc5 {[%clk 0:01:14.6]} 1-0

[Event "*** Titled Tuesday Blitz"]
[Site "Chess.com"]
[Date "2021.02.16"]
[Round "10"]
[White "jd001"]
[Black "ajedrez1101"]
[Result "1/2-1/2"]
[WhiteElo "2264"]
[BlackElo "2126"]
[TimeControl "180+1"]
[EndTime "11:57:17 PST"]
[Termination "Game drawn by agreement"]

1. d4 {[%clk 0:03:00.9]} 1... b6 {[%clk 0:03:00.2]} 2. e4 {[%clk 0:02:58.7]}
2... Bb7 {[%clk 0:02:59.7]} 3. Bd3 {[%clk 0:02:58.5]} 3... e6 {[%clk 0:02:59.9]}
4. Qe2 {[%clk 0:02:57.7]} 4... d5 {[%clk 0:02:54.4]} 5. exd5 {[%clk 0:02:56.4]}
5... Qxd5 {[%clk 0:02:51.7]} 6. Nf3 {[%clk 0:02:54.9]} 6... Nf6 {[%clk
0:02:50.6]} 7. O-O {[%clk 0:02:53.5]} 7... Be7 {[%clk 0:02:41.3]} 8. c4 {[%clk
0:02:50.5]} 8... Qh5 {[%clk 0:02:40.5]} 9. Nbd2 {[%clk 0:02:47]} 9... O-O {[%clk
0:02:36.2]} 10. Re1 {[%clk 0:02:46.3]} 10... Nbd7 {[%clk 0:02:35.2]} 11. Ne5
{[%clk 0:02:41.2]} 11... Qxe2 {[%clk 0:02:28.1]} 12. Rxe2 {[%clk 0:02:40.6]}
12... Nxe5 {[%clk 0:02:24.2]} 13. dxe5 {[%clk 0:02:40]} 13... Nd7 {[%clk
0:02:24.1]} 14. f4 {[%clk 0:02:23.5]} 14... Nc5 {[%clk 0:02:22.4]} 15. Bc2
{[%clk 0:02:23.1]} 15... a5 {[%clk 0:02:22.2]} 16. b3 {[%clk 0:02:21.9]} 16...
Rfd8 {[%clk 0:02:20.6]} 17. Bb2 {[%clk 0:02:21.1]} 17... Nd3 {[%clk 0:02:09.5]}
18. Bxd3 {[%clk 0:02:15.9]} 18... Rxd3 {[%clk 0:02:09.3]} 19. Rae1 {[%clk
0:02:09.9]} 19... Bc5+ {[%clk 0:02:07.9]} 20. Kf1 {[%clk 0:02:07.8]} 20... Bb4
{[%clk 0:01:56.6]} 21. Rd1 {[%clk 0:01:53.8]} 21... Rad8 {[%clk 0:01:55.8]} 22.
Ke1 {[%clk 0:01:53.4]} 22... Bxd2+ {[%clk 0:01:25.1]} 23. Rdxd2 {[%clk
0:01:49.5]} 23... Rxd2 {[%clk 0:01:23.9]} 24. Rxd2 {[%clk 0:01:49.5]} 24... Rxd2
{[%clk 0:01:24.7]} 25. Kxd2 {[%clk 0:01:49.6]} 25... Bxg2 {[%clk 0:01:25.3]} 26.
Ke3 {[%clk 0:01:47.5]} 26... Kf8 {[%clk 0:01:23.7]} 27. Bd4 {[%clk 0:01:43.1]}
27... Ke8 {[%clk 0:01:23.3]} 28. c5 {[%clk 0:01:43.3]} 28... bxc5 {[%clk
0:01:20.8]} 29. Bxc5 {[%clk 0:01:42.7]} 29... Bd5 {[%clk 0:01:16.8]} 30. Kd4
{[%clk 0:01:39.8]} 30... Kd7 {[%clk 0:01:16.5]} 31. Bf8 {[%clk 0:01:39.2]} 31...
g6 {[%clk 0:01:15.6]} 32. Kc5 {[%clk 0:01:38.6]} 32... Bc6 {[%clk 0:01:09.4]}
33. h4 {[%clk 0:01:32.7]} 33... h5 {[%clk 0:01:07.7]} 34. a3 {[%clk 0:01:31.7]}
34... Bd5 {[%clk 0:01:01.1]} 35. b4 {[%clk 0:01:28.7]} 35... axb4 {[%clk
0:01:00.7]} 36. axb4 {[%clk 0:01:28.4]} 36... c6 {[%clk 0:00:55.9]} 37. Kb6
{[%clk 0:01:27.8]} 37... Be4 {[%clk 0:00:55.1]} 38. Bd6 {[%clk 0:01:26.2]} 38...
Bd5 {[%clk 0:00:55.1]} 1/2-1/2